fUSD/lending_fUSD_20250823
["ID","MTS","AMOUNT","RATE_DAILY","PERIOD"]
[380962769,1755912808868,-911.43,0.00018082,2]
[380962770,1755912808877,-931.59,0.00018082,2]
[380962771,1755912808886,-400.0,0.00018082,2]
[380962772,1755912808896,-631.42,0.00018082,2]
[380962773,1755912808905,-585.39,0.00018082,2]
[380962774,1755912808915,-400.0,0.00018082,2]
[380962775,1755912808924,-821.68,0.00018082,2]
[380962776,1755912808934,-613.21,0.00018082,2]
[380962777,1755912808944,-464.46,0.00018082,2]
[380962778,1755912808954,-408.02,0.00018082,2]
[380962779,1755912808964,-266.09599064,0.00018082,2]
[380962780,1755912808974,-1744.32534432,0.000181,2]
[380962781,1755912808984,-1000.0,0.00018106,2]
[380962782,1755912808993,-150.0,0.00018121,2]
[380962783,1755912809004,-1000.0,0.00018166,2]
[380962784,1755912809014,-17708.8,0.000182,2]
[380962785,1755912809024,-70835.21,0.000182,2]
[380962786,1755912809034,-9653.08,0.000182,2]
[380962787,1755912809045,-26137.1,0.000182,2]
[380962788,1755912809054,-9790.21,0.000182,2]
[380962789,1755912809064,-1180.99999908,0.000182,2]
[380962790,1755912809074,-1000.0,0.00018225,2]
[380962791,1755912809084,-500.0,0.0001828,2]
[380962792,1755912809093,-1000.0,0.00018285,2]
[380962793,1755912809103,-1070.0,0.00018299,2]
[380962794,1755912809113,-549.67,0.00018338,2]
[380962795,1755912809122,-1000.0,0.00018344,2]
[380962796,1755912809133,-151.0,0.00018349,2]
[380962797,1755912809143,-157.75188111,0.00018349,2]
[380962798,1755912809153,-322.6107,0.00018349,2]
[380962799,1755912809163,-151.0,0.00018349,2]
[380962800,1755912809173,-270.20149842,0.00018349,2]
[380962801,1755912809183,-5391.81600769,0.00018349,2]
[380962802,1755912809192,-160.0,0.00018349,2]
[380962803,1755912809202,-151.0,0.00018349,2]
[380962804,1755912809212,-721.12765535,0.00018349,2]
[380962805,1755912809222,-981.07161553,0.00018349,2]
[380962806,1755912809231,-500.0,0.00018349,2]
[380962807,1755912809241,-151.0,0.00018349,2]
[380962808,1755912809252,-1000.0,0.00018349,2]
[380962809,1755912809262,-1000.0,0.00018349,2]
[380962810,1755912809272,-1000.0,0.00018349,2]
[380962811,1755912809284,-1000.0,0.00018349,2]
[380962812,1755912809294,-1000.0,0.00018349,2]
[380962813,1755912809304,-1000.0,0.00018349,2]
[380962814,1755912809314,-1000.0,0.00018349,2]
[380962815,1755912809324,-1000.0,0.00018349,2]
[380962816,1755912809334,-1000.0,0.00018349,2]
[380962817,1755912809344,-600.0,0.00018349,2]
[380962818,1755912809353,-1000.0,0.00018349,2]
[380962819,1755912809363,-600.0,0.00018349,2]
[380962820,1755912809372,-1000.0,0.00018349,2]
[380962821,1755912809382,-1000.0,0.00018349,2]
[380962822,1755912809392,-600.0,0.00018349,2]
[380962823,1755912809402,-200.0,0.00018349,2]
[380962824,1755912809415,-1000.0,0.00018349,2]
[380962825,1755912809424,-1000.0,0.00018349,2]
[380962826,1755912809434,-600.0,0.00018349,2]
[380962827,1755912809444,-1000.0,0.00018349,2]
[380962828,1755912809453,-1000.0,0.00018349,2]
[380962829,1755912809463,-600.0,0.00018349,2]
[380962830,1755912809473,-1000.0,0.00018349,2]
[380962831,1755912809483,-1000.0,0.00018349,2]
[380962832,1755912809493,-600.0,0.00018349,2]
[380962833,1755912809502,-1000.0,0.00018349,2]
[380962834,1755912809512,-1000.0,0.00018349,2]
[380962835,1755912809522,-1000.0,0.00018349,2]
[380962836,1755912809533,-600.0,0.00018349,2]
[380962837,1755912809543,-1000.0,0.00018349,2]
[380962838,1755912809553,-1000.0,0.00018349,2]
[380962839,1755912809562,-600.0,0.00018349,2]
[380962840,1755912809572,-1000.0,0.00018349,2]
[380962841,1755912809582,-1000.0,0.00018349,2]
[380962842,1755912809591,-600.0,0.00018349,2]
[380962843,1755912809601,-300.0,0.00018349,2]
[380962844,1755912809611,-1000.0,0.00018349,2]
[380962845,1755912809620,-600.0,0.00018349,2]
[380962846,1755912809629,-300.0,0.00018349,2]
[380962847,1755912809639,-1000.0,0.00018349,2]
[380962848,1755912809649,-600.0,0.00018349,2]
[380962849,1755912809658,-300.0,0.00018349,2]
[380962850,1755912809668,-1000.0,0.00018349,2]
[380962851,1755912809678,-300.0,0.00018349,2]
[380962852,1755912809687,-441.59634678,0.00018349,2]
[380962853,1755912809697,-300.0,0.00018349,2]
[380962854,1755912809707,-300.0,0.00018349,2]
[380962855,1755912809717,-300.0,0.00018349,2]
[380962856,1755912809726,-300.0,0.00018349,2]
[380962857,1755912809736,-300.0,0.00018349,2]
[380962858,1755912809746,-300.0,0.00018349,2]
[380962859,1755912809756,-275.08568987,0.00018349,2]
[380962860,1755912809766,-300.0,0.00018349,2]
[380962861,1755912809776,-277.35679052,0.00018349,2]
[380962862,1755912809787,-151.0,0.00018349,2]
[380962863,1755912809797,-151.0,0.00018349,2]
[380962864,1755912809807,-151.0,0.00018349,2]
[380962865,1755912809816,-263.99876593,0.00018349,2]
[380962866,1755912809826,-151.0,0.00018349,2]
[380962867,1755912809835,-300.0,0.00018349,2]
[380962868,1755912809844,-151.0,0.00018349,2]
[380962869,1755912809854,-151.0,0.00018349,2]
[380962870,1755912809863,-300.0,0.00018349,2]
[380962871,1755912809873,-151.0,0.00018349,2]
[380962872,1755912809883,-300.0,0.00018349,2]
[380962873,1755912809893,-151.0,0.00018349,2]
[380962874,1755912809903,-300.0,0.00018349,2]
[380962875,1755912809913,-151.0,0.00018349,2]
[380962876,1755912809923,-300.0,0.00018349,2]
[380962877,1755912809932,-151.0,0.00018349,2]
[380962878,1755912809941,-300.0,0.00018349,2]
[380962879,1755912809951,-300.0,0.00018349,2]
[380962880,1755912809961,-151.0,0.00018349,2]
[380962881,1755912809971,-151.0,0.00018349,2]
[380962882,1755912809980,-300.0,0.00018349,2]
[380962883,1755912809990,-151.0,0.00018349,2]
[380962884,1755912810001,-334.61895983,0.00018349,2]
[380962885,1755912810010,-733.0,0.00018356,2]
[380962886,1755912810021,-1367.0,0.00018356,2]
[380962887,1755912810030,-500.0,0.00018356,2]
[380962888,1755912810041,-500.0,0.00018356,2]
[380962889,1755912810050,-2066.0,0.00018356,2]
[380962890,1755912810060,-500.0,0.00018356,2]
[380962891,1755912810070,-1471.92,0.00018356,2]
[380962892,1755912810080,-404.24,0.00018356,2]
[380962893,1755912810089,-400.0,0.00018356,2]
[380962894,1755912810099,-380.34314852,0.00018356,2]
[380962895,1755912810109,-957.1,0.00018356,2]
[380962896,1755912810118,-500.5,0.00018356,2]
[380962897,1755912810128,-400.0,0.00018356,2]
[380962898,1755912810137,-630.13,0.00018356,2]
[380962899,1755912810146,-484.29,0.00018356,2]
[380962900,1755912810155,-691.2,0.00018356,2]
[380962901,1755912810165,-400.0,0.00018356,2]
[380962902,1755912810174,-564.0,0.00018356,2]
[380962903,1755912810183,-922.66,0.00018356,2]
[380962904,1755912810193,-1309.75,0.00018356,2]
[380962905,1755912810202,-401.7969989,0.00018356,2]
[380962906,1755912810211,-410.64,0.00018356,2]
[380962907,1755912810221,-400.0,0.00018356,2]
[380962908,1755912810230,-400.0,0.00018356,2]
[380962909,1755912810239,-814.35,0.00018356,2]
[380962910,1755912810249,-703.72,0.00018356,2]
[380962911,1755912810258,-400.0,0.00018356,2]
[380962912,1755912810268,-400.0,0.00018356,2]
[380962913,1755912810279,-400.0,0.00018356,2]
[380962914,1755912810290,-416.84,0.00018356,2]
[380962915,1755912810299,-552.81,0.00018356,2]
[380962916,1755912810309,-565.22,0.00018356,2]
[380962917,1755912810318,-457.37,0.00018356,2]
[380962918,1755912810328,-400.0,0.00018356,2]
[380962919,1755912810337,-454.18,0.00018356,2]
[380962920,1755912810347,-408.41,0.00018356,2]
[380962921,1755912810357,-429.23,0.00018356,2]
[380962922,1755912810366,-400.0,0.00018356,2]
[380962923,1755912810376,-400.0,0.00018356,2]
[380962924,1755912810386,-400.0,0.00018356,2]
[380962925,1755912810395,-582.37,0.00018356,2]
[380962926,1755912810404,-400.0,0.00018356,2]
[380962927,1755912810413,-400.0,0.00018356,2]
[380962928,1755912810427,-759.88,0.00018356,2]
[380962929,1755912810436,-453.66596717,0.00018356,2]
[380962930,1755912810445,-591.39,0.00018356,2]
[380962931,1755912810455,-413.97,0.00018356,2]
[380962932,1755912810465,-649.74,0.00018356,2]
[380962933,1755912810474,-446.38,0.00018356,2]
[380962934,1755912810483,-506.47,0.00018356,2]
[380962935,1755912810495,-715.02,0.00018356,2]
[380962936,1755912810505,-537.25,0.00018356,2]
[380962937,1755912810515,-400.0,0.00018356,2]
[380962938,1755912810525,-512.45,0.00018356,2]
[380962939,1755912810535,-527.41,0.00018356,2]
[380962940,1755912810545,-400.0,0.00018356,2]
[380962941,1755912810555,-521.1,0.00018356,2]
[380962942,1755912810564,-446.92,0.00018356,2]
[380962943,1755912810575,-449.44,0.00018356,2]
[380962944,1755912810584,-675.1,0.00018356,2]
[380962945,1755912810594,-400.0,0.00018356,2]
[380962946,1755912810603,-609.3,0.00018356,2]
[380962947,1755912810613,-654.03,0.00018356,2]
[380962948,1755912810622,-400.0,0.00018356,2]
[380962949,1755912810632,-362.97,0.00018356,2]
[380962950,1755912810641,-661.96,0.00018356,2]
[380962951,1755912810651,-568.98,0.00018356,2]
[380962952,1755912810661,-400.0,0.00018356,2]
[380962953,1755912810670,-400.0,0.00018356,2]
[380962954,1755912810680,-709.86,0.00018356,2]
[380962955,1755912810689,-812.84,0.00018356,2]
[380962956,1755912810699,-437.4,0.00018356,2]
[380962957,1755912810710,-586.38,0.00018356,2]
[380962958,1755912810720,-442.27,0.00018356,2]
[380962959,1755912810731,-562.61,0.00018356,2]
[380962960,1755912810740,-400.0,0.00018356,2]
[380962961,1755912810749,-400.0,0.00018356,2]
[380962962,1755912810759,-845.65,0.00018356,2]
[380962963,1755912810768,-441.24,0.00018356,2]
[380962964,1755912810777,-529.98,0.00018356,2]
[380962965,1755912810788,-400.0,0.00018356,2]
[380962966,1755912810797,-570.39,0.00018356,2]
[380962967,1755912810807,-400.0,0.00018356,2]
[380962968,1755912810817,-421.77,0.00018356,2]
[380962969,1755912810827,-400.0,0.00018356,2]
[380962970,1755912810836,-400.0,0.00018356,2]
[380962971,1755912810846,-400.0,0.00018356,2]
[380962972,1755912810856,-464.48,0.00018356,2]
[380962973,1755912810865,-415.36,0.00018356,2]
[380962974,1755912810876,-530.98,0.00018356,2]
[380962975,1755912810885,-512.43,0.00018356,2]
[380962976,1755912810895,-516.79,0.00018356,2]
[380962977,1755912810906,-400.0,0.00018356,2]
[380962978,1755912810916,-400.0,0.00018356,2]
[380962979,1755912810927,-400.0,0.00018356,2]
[380962980,1755912810940,-409.44,0.00018356,2]
[380962981,1755912810951,-448.46033369,0.00018356,2]
[380962982,1755912810961,-499.57,0.00018356,2]
[380962983,1755912810970,-400.0,0.00018356,2]
[380962984,1755912810979,-577.94,0.00018356,2]
[380962985,1755912810988,-400.0,0.00018356,2]
[380962986,1755912810998,-476.9,0.00018356,2]
[380962987,1755912811007,-637.7,0.00018356,2]
[380962988,1755912811017,-423.83,0.00018356,2]
[380962989,1755912811026,-459.29,0.00018356,2]
[380962990,1755912811038,-873.47,0.00018356,2]
[380962991,1755912811047,-571.62,0.00018356,2]
[380962992,1755912811057,-409.95,0.00018356,2]
[380962993,1755912811066,-1704.41,0.00018356,2]
[380962994,1755912811076,-549.98,0.00018356,2]
[380962995,1755912811085,-400.0,0.00018356,2]
[380962996,1755912811095,-400.0,0.00018356,2]
[380962997,1755912811105,-531.47,0.00018356,2]
[380962998,1755912811115,-456.18,0.00018356,2]
[380962999,1755912811125,-400.0,0.00018356,2]
[380963000,1755912811135,-890.29,0.00018356,2]
[380963001,1755912811145,-406.1,0.00018356,2]
[380963002,1755912811155,-400.0,0.00018356,2]
[380963003,1755912811165,-421.32,0.00018356,2]
[380963004,1755912811174,-478.43,0.00018356,2]
[380963005,1755912811184,-400.0,0.00018356,2]
[380963006,1755912811194,-487.04,0.00018356,2]
[380963007,1755912811203,-595.85,0.00018356,2]
[380963008,1755912811213,-542.43,0.00018356,2]
[380963009,1755912811224,-510.81,0.00018356,2]
[380963010,1755912811234,-400.0,0.00018356,2]
[380963011,1755912811244,-451.04,0.00018356,2]
[380963012,1755912811254,-477.02,0.00018356,2]
[380963013,1755912811263,-667.8,0.00018356,2]
[380963014,1755912811273,-754.76,0.00018356,2]
[380963015,1755912811284,-400.0,0.00018356,2]
[380963016,1755912811294,-1030.1,0.00018356,2]
[380963017,1755912811304,-510.89,0.00018356,2]
[380963018,1755912811314,-436.99,0.00018356,2]
[380963019,1755912811324,-657.25,0.00018356,2]
[380963020,1755912811334,-400.0,0.00018356,2]
[380963021,1755912811344,-400.0,0.00018356,2]
[380963022,1755912811354,-400.0,0.00018356,2]
[380963023,1755912811364,-1067.81,0.00018356,2]
[380963024,1755912811374,-417.45,0.00018356,2]
[380963025,1755912811384,-400.0,0.00018356,2]
[380963026,1755912811395,-578.42,0.00018356,2]
[380963027,1755912811408,-786.01,0.00018356,2]
[380963028,1755912811419,-1145.67,0.00018356,2]
[380963029,1755912811430,-624.95,0.00018356,2]
[380963030,1755912811440,-400.0,0.00018356,2]
[380963031,1755912811450,-439.98,0.00018356,2]
[380963032,1755912811459,-400.0,0.00018356,2]
[380963033,1755912811469,-734.24,0.00018356,2]
[380963034,1755912811479,-716.27,0.00018356,2]
[380963035,1755912811489,-400.0,0.00018356,2]
[380963036,1755912811500,-677.21,0.00018356,2]
[380963037,1755912811509,-400.0,0.00018356,2]
[380963038,1755912811519,-503.77,0.00018356,2]
[380963039,1755912811529,-651.98,0.00018356,2]
[380963040,1755912811541,-831.56,0.00018356,2]
[380963041,1755912811551,-742.35,0.00018356,2]
[380963042,1755912811561,-541.87,0.00018356,2]
[380963043,1755912811571,-400.0,0.00018356,2]
[380963044,1755912811581,-462.17,0.00018356,2]
[380963045,1755912811591,-400.0,0.00018356,2]
[380963046,1755912811601,-422.39,0.00018356,2]
[380963047,1755912811612,-400.0,0.00018356,2]
[380963048,1755912811622,-535.7,0.00018356,2]
[380963049,1755912811632,-601.7,0.00018356,2]
[380963050,1755912811642,-598.88,0.00018356,2]
[380963051,1755912811652,-729.0,0.00018356,2]
[380963052,1755912811662,-400.0,0.00018356,2]
[380963053,1755912811672,-400.0,0.00018356,2]
[380963054,1755912811681,-482.06,0.00018356,2]
[380963055,1755912811691,-648.16,0.00018356,2]
[380963056,1755912811701,-400.0,0.00018356,2]
[380963057,1755912811712,-400.0,0.00018356,2]
[380963058,1755912811722,-560.98,0.00018356,2]
[380963059,1755912811732,-485.12,0.00018356,2]
[380963060,1755912811742,-581.45,0.00018356,2]
[380963061,1755912811752,-400.0,0.00018356,2]
[380963062,1755912811762,-607.66,0.00018356,2]
[380963063,1755912811772,-400.0,0.00018356,2]
[380963064,1755912811782,-483.72,0.00018356,2]
[380963065,1755912811794,-506.32,0.00018356,2]
[380963066,1755912811804,-657.0,0.00018356,2]
[380963067,1755912811814,-460.21,0.00018356,2]
[380963068,1755912811823,-664.59,0.00018356,2]
[380963069,1755912811833,-463.13,0.00018356,2]
[380963070,1755912811844,-518.18,0.00018356,2]
[380963071,1755912811855,-548.04,0.00018356,2]
[380963072,1755912811865,-490.94,0.00018356,2]
[380963073,1755912811875,-623.23,0.00018356,2]
[380963074,1755912811885,-407.86,0.00018356,2]
[380963075,1755912811895,-538.71,0.00018356,2]
[380963076,1755912811905,-492.11,0.00018356,2]
[380963077,1755912811915,-585.32,0.00018356,2]
[380963078,1755912811924,-704.8,0.00018356,2]
[380963079,1755912811934,-419.51,0.00018356,2]
[380963080,1755912811944,-536.25,0.00018356,2]
[380963081,1755912811954,-400.0,0.00018356,2]
[380963082,1755912811965,-416.08,0.00018356,2]
[380963083,1755912811976,-685.75,0.00018356,2]
[380963084,1755912811986,-285.9345368,0.00018356,2]
[380963085,1755912811996,-1265.94,0.00018356,2]
[380963086,1755912812007,-475.58,0.00018356,2]
[380963087,1755912812017,-400.0,0.00018356,2]
[380963088,1755912812027,-400.0,0.00018356,2]
[380963089,1755912812039,-400.0,0.00018356,2]
[380963090,1755912812049,-433.85,0.00018356,2]
[380963091,1755912812060,-400.0,0.00018356,2]
[380963092,1755912812070,-400.0,0.00018356,2]
[380963093,1755912812080,-428.36,0.00018356,2]
[380963094,1755912812091,-543.91,0.00018356,2]
[380963095,1755912812101,-427.61,0.00018356,2]
[380963096,1755912812112,-763.66,0.00018356,2]
[380963097,1755912812122,-499.04456256,0.00018356,2]
[380963098,1755912812133,-334.13,0.00018356,2]
[380963099,1755912812143,-400.0,0.00018356,2]
[380963100,1755912812153,-482.08,0.00018356,2]
[380963101,1755912812163,-552.38,0.00018356,2]
[380963102,1755912812174,-793.95,0.00018356,2]
[380963103,1755912812183,-400.0,0.00018356,2]
[380963104,1755912812193,-476.99,0.00018356,2]
[380963105,1755912812204,-772.08,0.00018356,2]
[380963106,1755912812215,-607.86,0.00018356,2]
[380963107,1755912812225,-577.68,0.00018356,2]
[380963108,1755912812236,-446.17,0.00018356,2]
[380963109,1755912812246,-499.75,0.00018356,2]
[380963110,1755912812257,-543.86,0.00018356,2]
[380963111,1755912812267,-707.33,0.00018356,2]
[380963112,1755912812277,-475.34,0.00018356,2]
[380963113,1755912812288,-156.17461,0.00018356,2]
[380963114,1755912812299,-602.1,0.00018356,2]
[380963115,1755912812308,-496.62,0.00018356,2]
[380963116,1755912812319,-480.32,0.00018356,2]
[380963117,1755912812330,-752.86,0.00018356,2]
[380963118,1755912812341,-400.0,0.00018356,2]
[380963119,1755912812351,-400.0,0.00018356,2]
[380963120,1755912812362,-400.0,0.00018356,2]
[380963121,1755912812372,-633.62,0.00018356,2]
[380963122,1755912812384,-560.58,0.00018356,2]
[380963123,1755912812394,-400.0,0.00018356,2]
[380963124,1755912812405,-416.01,0.00018356,2]
[380963125,1755912812420,-614.22,0.00018356,2]
[380963126,1755912812431,-428.79,0.00018356,2]
[380963127,1755912812442,-206.95,0.00018356,2]
[380963128,1755912812454,-425.3,0.00018356,2]
[380963129,1755912812465,-508.68,0.00018356,2]
[380963130,1755912812475,-193.17723,0.00018356,2]
[380963131,1755912812487,-470.91,0.00018356,2]
[380963132,1755912812498,-418.5,0.00018356,2]
[380963133,1755912812508,-535.36,0.00018356,2]
[380963134,1755912812519,-400.0,0.00018356,2]
[380963135,1755912812529,-400.0,0.00018356,2]
[380963136,1755912812540,-747.8,0.00018356,2]
[380963137,1755912812551,-400.0,0.00018356,2]
[380963138,1755912812561,-433.94,0.00018356,2]
[380963139,1755912812572,-464.64793223,0.00018356,2]
[380963140,1755912812583,-400.0,0.00018356,2]
[380963141,1755912812593,-472.48,0.00018356,2]
[380963142,1755912812604,-855.010025,0.00018356,2]
[380963143,1755912812615,-202.05555873,0.00018356,2]
[380963144,1755912812625,-631.75,0.00018356,2]
[380963145,1755912812635,-479.25,0.00018356,2]
[380963146,1755912812646,-737.35,0.00018356,2]
[380963147,1755912812656,-473.06,0.00018356,2]
[380963148,1755912812667,-400.0,0.00018356,2]
[380963149,1755912812677,-400.0,0.00018356,2]
[380963150,1755912812687,-464.53,0.00018356,2]
[380963151,1755912812697,-400.0,0.00018356,2]
[380963152,1755912812707,-451.38,0.00018356,2]
[380963153,1755912812717,-400.0,0.00018356,2]
[380963154,1755912812727,-605.41,0.00018356,2]
[380963155,1755912812737,-763.68,0.00018356,2]
[380963156,1755912812746,-400.0,0.00018356,2]
[380963157,1755912813035,-437.52,0.00018356,2]
[380963158,1755912813051,-496.31,0.00018356,2]
[380963159,1755912813062,-434.73156435,0.00018356,2]
[380963160,1755912813072,-517.63,0.00018356,2]
[380963161,1755912813081,-1076.1,0.00018356,2]
[380963162,1755912813091,-400.0,0.00018356,2]
[380963163,1755912813100,-599.57,0.00018356,2]
[380963164,1755912813110,-400.0,0.00018356,2]
[380963165,1755912813120,-578.64,0.00018356,2]
[380963166,1755912813130,-538.24,0.00018356,2]
[380963167,1755912813140,-531.82,0.00018356,2]
[380963168,1755912813150,-481.87,0.00018356,2]
[380963169,1755912813160,-596.46,0.00018356,2]
[380963170,1755912813170,-876.45,0.00018356,2]
[380963171,1755912813179,-750.69,0.00018356,2]
[380963172,1755912813189,-400.0,0.00018356,2]
[380963173,1755912813200,-483.91,0.00018356,2]
[380963174,1755912813210,-429.94,0.00018356,2]
[380963175,1755912813221,-2560.03,0.00018356,2]
[380963176,1755912813232,-583.44,0.00018356,2]
[380963177,1755912813243,-400.0,0.00018356,2]
[380963178,1755912813254,-412.65,0.00018356,2]
[380963179,1755912813265,-400.0,0.00018356,2]
[380963180,1755912813275,-466.47,0.00018356,2]
[380963181,1755912813286,-511.98,0.00018356,2]
[380963182,1755912813296,-714.55,0.00018356,2]
[380963183,1755912813307,-400.0,0.00018356,2]
[380963184,1755912813317,-400.0,0.00018356,2]
[380963185,1755912813328,-483.0,0.00018356,2]
[380963186,1755912813338,-638.96,0.00018356,2]
[380963187,1755912813347,-626.45,0.00018356,2]
[380963188,1755912813358,-789.4,0.00018356,2]
[380963189,1755912813368,-411.07,0.00018356,2]
[380963190,1755912813378,-459.86,0.00018356,2]
[380963191,1755912813388,-590.56,0.00018356,2]
[380963192,1755912813398,-7170.55,0.00018356,2]
[380963193,1755912813408,-798.6,0.00018356,2]
[380963194,1755912813421,-489.74,0.00018356,2]
[380963195,1755912813430,-568.83,0.00018356,2]
[380963196,1755912813440,-414.4,0.00018356,2]
[380963197,1755912813450,-755.36,0.00018356,2]
[380963198,1755912813460,-242.27,0.00018356,2]
[380963199,1755912813469,-556.35,0.00018356,2]
[380963200,1755912813479,-522.88,0.00018356,2]
[380963201,1755912813489,-2114.53,0.00018356,2]
[380963202,1755912813499,-400.0,0.00018356,2]
[380963203,1755912813510,-2594.59,0.00018356,2]
[380963204,1755912813519,-446.5,0.00018356,2]
[380963205,1755912813530,-529.92,0.00018356,2]
[380963206,1755912813539,-705.67,0.00018356,2]
[380963207,1755912813550,-896.87,0.00018356,2]
[380963208,1755912813560,-400.0,0.00018356,2]
[380963209,1755912813570,-400.0,0.00018356,2]
[380963210,1755912813580,-741.74,0.00018356,2]
[380963211,1755912813590,-1094.77,0.00018356,2]
[380963212,1755912813599,-400.0,0.00018356,2]
[380963213,1755912813609,-869.76,0.00018356,2]
[380963214,1755912813619,-562.13,0.00018356,2]
[380963215,1755912813629,-437.77,0.00018356,2]
[380963216,1755912813639,-418.69,0.00018356,2]
[380963217,1755912813650,-723.99,0.00018356,2]
[380963218,1755912813660,-541.27,0.00018356,2]
[380963219,1755912813670,-1048.91,0.00018356,2]
[380963220,1755912813680,-963.36,0.00018356,2]
[380963221,1755912813691,-685.08,0.00018356,2]
[380963222,1755912813700,-4903.23,0.00018356,2]
[380963223,1755912813710,-614.11,0.00018356,2]
[380963224,1755912813720,-196.25961334,0.00018356,2]
[380963225,1755912813731,-400.0,0.00018356,2]
[380963226,1755912813741,-530.85,0.00018356,2]
[380963227,1755912813751,-956.53,0.00018356,2]
[380963228,1755912813761,-400.0,0.00018356,2]
[380963229,1755912813772,-400.0,0.00018356,2]
[380963230,1755912813782,-508.77,0.00018356,2]
[380963231,1755912813794,-690.94,0.00018356,2]
[380963232,1755912813804,-781.78,0.00018356,2]
[380963233,1755912813815,-166.839125,0.00018356,2]
[380963234,1755912813825,-407.82,0.00018356,2]
[380963235,1755912813835,-516.0,0.00018356,2]
[380963236,1755912813846,-573.49,0.00018356,2]
[380963237,1755912813856,-400.0,0.00018356,2]
[380963238,1755912813867,-548.91,0.00018356,2]
[380963239,1755912813877,-400.0,0.00018356,2]
[380963240,1755912813887,-2566.25,0.00018356,2]
[380963241,1755912813897,-468.96,0.00018356,2]
[380963242,1755912813908,-947.84,0.00018356,2]
[380963243,1755912813918,-1053.52,0.00018356,2]
[380963244,1755912813928,-400.0,0.00018356,2]
[380963245,1755912813938,-659.68,0.00018356,2]
[380963246,1755912813948,-691.7,0.00018356,2]
[380963247,1755912813958,-1155.0,0.00018356,2]
[380963248,1755912813968,-557.81,0.00018356,2]
[380963249,1755912813978,-1327.17,0.00018356,2]
[380963250,1755912813988,-719.87,0.00018356,2]
[380963251,1755912813998,-532.88,0.00018356,2]
[380963252,1755912814008,-621.05,0.00018356,2]
[380963253,1755912814018,-482.24,0.00018356,2]
[380963254,1755912814028,-825.64,0.00018356,2]
[380963255,1755912814040,-786.36,0.00018356,2]
[380963256,1755912814050,-508.4,0.00018356,2]
[380963257,1755912814060,-400.0,0.00018356,2]
[380963258,1755912814070,-811.77,0.00018356,2]
[380963259,1755912814081,-448.05,0.00018356,2]
[380963260,1755912814091,-471.12,0.00018356,2]
[380963261,1755912814100,-522.09,0.00018356,2]
[380963262,1755912814111,-478.08,0.00018356,2]
[380963263,1755912814120,-400.0,0.00018356,2]
[380963264,1755912814129,-413.45,0.00018356,2]
[380963265,1755912814138,-1160.25,0.00018356,2]
[380963266,1755912814148,-400.0,0.00018356,2]
[380963267,1755912814157,-400.01,0.00018356,2]
[380963268,1755912814167,-1658.24,0.00018356,2]